fUST/lending_fUST_20240427
["ID","MTS","AMOUNT","RATE_DAILY","PERIOD"]
[323663619,1714151451639,-500.0,0.00041369,7]
[323663621,1714151451649,-1068.89,0.00041369,7]
[323663623,1714151451658,-500.0,0.00041369,7]
[323663625,1714151451667,-538.99,0.00041369,7]
[323663627,1714151451676,-701.69,0.00041369,7]
[323663629,1714151451685,-500.0,0.00041369,7]
[323663631,1714151451694,-3882.5,0.00041369,7]
[323663633,1714151451704,-1351.34,0.00041369,7]
[323663635,1714151451713,-500.0,0.00041369,7]
[323663637,1714151451722,-501.18751819,0.00041369,7]
[323663639,1714151451732,-500.0,0.00041369,7]
[323663641,1714151451741,-500.0,0.00041369,7]
[323663643,1714151451750,-417.38501828,0.00041369,7]
[323663645,1714151451759,-500.0,0.00041369,7]
[323663647,1714151451768,-290.455397,0.00041369,7]
[323663650,1714151451777,-500.0,0.00041369,7]
[323663652,1714151451787,-1308.8,0.00041369,7]
[323663654,1714151451796,-290.455397,0.00041369,7]
[323663656,1714151451805,-290.455397,0.00041369,7]
[323663658,1714151451814,-500.0,0.00041369,7]
[323663659,1714151451823,-4129.12,0.00041369,7]
[323663661,1714151451832,-500.0,0.00041369,7]
[323663664,1714151451841,-500.0,0.00041369,7]
[323663666,1714151451850,-290.455397,0.00041369,7]
[323663668,1714151451859,-290.455397,0.00041369,7]
[323663669,1714151451868,-500.0,0.00041369,7]
[323663671,1714151451878,-290.455397,0.00041369,7]
[323663673,1714151451887,-1568.78,0.00041369,7]
[323663676,1714151451896,-624.57,0.00041369,7]
[323663678,1714151451905,-500.0,0.00041369,7]
[323663679,1714151451914,-9906.46,0.00041369,7]
[323663681,1714151451924,-500.0,0.00041369,7]
[323663683,1714151451933,-707.43,0.00041369,7]
[323663685,1714151451942,-500.0,0.00041369,7]
[323663688,1714151451951,-500.0,0.00041369,7]
[323663690,1714151451960,-1463.03,0.00041369,7]
[323663691,1714151451969,-502.32921597,0.00041369,7]
[323663694,1714151451979,-500.0,0.00041369,7]
[323663696,1714151451988,-652.39,0.00041369,7]
[323663698,1714151451997,-8370.61,0.00041369,7]
[323663699,1714151452006,-500.0,0.00041369,7]
[323663701,1714151452019,-500.0,0.00041369,7]
[323663704,1714151452029,-1240.5,0.00041369,7]
[323663706,1714151452038,-500.0,0.00041369,7]
[323663708,1714151452047,-500.0,0.00041369,7]
[323663710,1714151452057,-500.0,0.00041369,7]
[323663711,1714151452066,-500.0,0.00041369,7]
[323663713,1714151452076,-501.06505482,0.00041369,7]
[323663716,1714151452089,-323.92231843,0.00041369,7]
[323663717,1714151452099,-312.89639412,0.00041369,7]
[323663720,1714151452108,-500.0,0.00041369,7]
[323663721,1714151452118,-555.11662491,0.00041369,7]
[323663724,1714151452128,-500.0,0.00041369,7]
[323663725,1714151452137,-500.0,0.00041369,7]
[323663727,1714151452146,-500.0,0.00041369,7]
[323663729,1714151452155,-612.68,0.00041369,7]
[323663731,1714151452164,-500.0,0.00041369,7]
[323663734,1714151452173,-500.0,0.00041369,7]
[323663736,1714151452182,-500.0,0.00041369,7]
[323663738,1714151452191,-228.10138109,0.00041369,7]
[323663740,1714151452200,-735.34,0.00041369,7]
[323663741,1714151452209,-577.88,0.00041369,7]
[323663744,1714151452218,-500.0,0.00041369,7]
[323663745,1714151452229,-12883.84,0.00041369,7]
[323663748,1714151452238,-161.79543406,0.00041369,7]
[323663750,1714151452248,-10267.73,0.00041369,7]
[323663752,1714151452257,-1671.4,0.00041369,7]
[323663754,1714151452266,-200.41188959,0.00041369,7]
[323663755,1714151452276,-500.0,0.00041369,7]
[323663757,1714151452285,-500.0,0.00041369,7]
[323663760,1714151452296,-500.0,0.00041369,7]
[323663762,1714151452306,-500.0,0.00041369,7]
[323663764,1714151452315,-500.0,0.00041369,7]
[323663765,1714151452324,-500.0,0.00041369,7]
[323663767,1714151452334,-500.0,0.00041369,7]
[323663770,1714151452343,-500.0,0.00041369,7]
[323663772,1714151452353,-500.0,0.00041369,7]
[323663774,1714151452362,-500.0,0.00041369,2]
[323663776,1714151452372,-408.56228367,0.00041369,7]
[323663778,1714151452381,-500.0,0.00041369,7]
[323663780,1714151452391,-5819.34,0.00041369,7]
[323663782,1714151452401,-500.0,0.00041369,7]
[323663784,1714151452411,-500.0,0.00041369,7]
[323663786,1714151452421,-501.60539896,0.00041369,7]
[323663787,1714151452430,-537.45676928,0.00041369,7]
[323663790,1714151452440,-500.0,0.00041369,7]
[323663791,1714151452451,-1454.51,0.00041369,7]
[323663793,1714151452461,-500.0,0.00041369,7]
[323663795,1714151452471,-500.0,0.00041369,7]
[323663797,1714151452481,-500.0,0.00041643,7]
[323663800,1714151452491,-500.0,0.00041643,7]
[323663802,1714151452502,-500.0,0.00041643,7]
[323663803,1714151452512,-843.21,0.00041643,7]
[323663805,1714151452524,-500.0,0.00041643,3]
[323663807,1714151452534,-500.0,0.00041643,7]
[323663810,1714151452544,-500.0,0.00041643,7]
[323663811,1714151452554,-500.0,0.00041643,7]
[323663813,1714151452563,-500.0,0.00041643,7]
[323663816,1714151452573,-1531.05,0.00041643,120]
[323663817,1714151452583,-500.0,0.00041643,7]
[323663820,1714151452593,-500.0,0.00041643,7]
[323663821,1714151452605,-500.0,0.00041643,7]
[323663823,1714151452616,-500.0,0.00041643,7]
[323663825,1714151452626,-500.0,0.00041643,7]
[323663828,1714151452636,-1205.42,0.00041643,7]
[323663830,1714151452646,-370.19826264,0.00041643,7]
[323663831,1714151452656,-500.0,0.00041643,7]
[323663834,1714151452666,-500.0,0.00041643,7]
[323663835,1714151452676,-500.0,0.00041643,7]
[323663838,1714151452686,-500.0,0.00041643,7]
[323663839,1714151452698,-603.84807106,0.00041643,7]
[323663842,1714151452710,-500.0,0.00041643,7]
[323663843,1714151452720,-500.0,0.00041643,7]
[323663845,1714151452732,-500.0,0.00041643,7]
[323663847,1714151452742,-500.0,0.00041643,7]
[323663850,1714151452752,-500.0,0.00041643,7]
[323663852,1714151452764,-500.0,0.00041643,7]
[323663853,1714151452775,-500.0,0.00041643,7]
[323663856,1714151452787,-500.0,0.00041643,7]
[323663858,1714151452799,-500.0,0.00041643,7]
[323663860,1714151452808,-500.0,0.00041643,7]
[323663861,1714151452818,-500.0,0.00041643,7]
[323663864,1714151452829,-500.0,0.00041643,7]
[323663866,1714151452839,-500.0,0.00041643,7]
[323663867,1714151452849,-500.0,0.00041643,7]
[323663870,1714151452860,-500.0,0.00041643,7]
[323663871,1714151452872,-500.0,0.00041643,7]
[323663874,1714151452883,-500.0,0.00041643,7]
[323663876,1714151452893,-500.0,0.00041643,7]
[323663878,1714151452903,-1843.11,0.00041643,7]
[323663880,1714151452914,-500.0,0.00041643,7]
[323663881,1714151452925,-1315.36,0.00041643,7]
[323663884,1714151452936,-500.0,0.00041643,7]
[323663886,1714151452945,-500.0,0.00041643,7]
[323663888,1714151452956,-554.16378705,0.00041643,7]
[323663890,1714151452969,-556.89311843,0.00041643,7]
[323663892,1714151452979,-500.0,0.00041643,7]
[323663894,1714151452988,-1968.72,0.00041643,7]
[323663896,1714151452999,-500.0,0.00041643,7]
[323663898,1714151453009,-500.0,0.00041643,7]
[323663900,1714151453021,-1326.46,0.00041643,7]
[323663902,1714151453031,-500.0,0.00041643,7]
[323663904,1714151453041,-500.0,0.00041643,7]
[323663906,1714151453051,-500.0,0.00041643,7]
[323663908,1714151453060,-500.0,0.00041643,7]
[323663909,1714151453070,-500.0,0.00041643,7]
[323663911,1714151453080,-500.0,0.00041643,7]
[323663914,1714151453092,-500.0,0.00041643,7]
[323663916,1714151453103,-500.0,0.00041643,7]
[323663917,1714151453113,-500.0,0.00041643,7]
[323663919,1714151453123,-500.0,0.00041643,7]
[323663921,1714151453134,-500.0,0.00041643,7]
[323663932,1714151453225,-500.0,0.00041643,7]
[323663934,1714151453238,-500.0,0.00041643,7]
[323663936,1714151453248,-500.0,0.00041643,7]
[323663938,1714151453258,-579.7782272,0.00041643,7]
[323663940,1714151453269,-1037.26,0.00041643,7]
[323663942,1714151453279,-500.0,0.00041643,7]
[323663944,1714151453290,-151.0,0.00041643,7]
[323663946,1714151453300,-1749.02,0.00041643,7]
[323663948,1714151453310,-202.37514998,0.00041643,7]
[323663950,1714151453321,-1398.14,0.00041643,7]
[323663952,1714151453330,-500.0,0.00041643,7]
[323663954,1714151453340,-500.0,0.00041643,7]
[323663956,1714151453351,-500.0,0.00041643,7]
[323663958,1714151453361,-500.0,0.00041643,7]
[323663960,1714151453372,-500.0,0.00041643,7]
[323663962,1714151453381,-547.54,0.00041643,7]
[323663964,1714151453392,-500.0,0.00041643,7]
[323663966,1714151453401,-2123.78,0.00041643,7]
[323663968,1714151453411,-500.0,0.00041643,7]
[323663970,1714151453420,-500.0,0.00041643,7]
[323663972,1714151453430,-164.19498503,0.00041643,7]
[323663974,1714151453439,-500.0,0.00041643,7]
[323663976,1714151453449,-151.0,0.00041643,7]
[323663978,1714151453459,-500.0,0.00041643,7]
[323663980,1714151453469,-500.0,0.00041643,7]
[323663982,1714151453479,-151.0,0.00041643,7]
[323663984,1714151453488,-500.0,0.00041643,7]
[323663986,1714151453498,-151.0,0.00041643,7]
[323663988,1714151453508,-500.0,0.00041643,7]
[323663990,1714151453517,-500.0,0.00041643,7]
[323663992,1714151453526,-500.0,0.00041643,7]
[323663994,1714151453535,-500.0,0.00041643,7]
[323663996,1714151453545,-500.0,0.00041643,7]
[323663998,1714151453555,-2561.54,0.00041643,7]
[323664000,1714151453565,-500.0,0.00041643,7]
[323664002,1714151453574,-500.0,0.00041643,7]
[323664004,1714151453584,-600.33400583,0.00041643,7]
[323664006,1714151453594,-500.0,0.00041643,7]
[323664008,1714151453604,-1529.74,0.00041643,7]
[323664010,1714151453613,-1087.6,0.00041643,7]
[323664012,1714151453623,-1398.22,0.00041643,7]
[323664014,1714151453633,-200.0,0.00041643,30]
[323664016,1714151453642,-500.0,0.00041643,7]
[323664018,1714151453652,-1748.44,0.00041643,7]
[323664019,1714151453661,-500.0,0.00041643,7]
[323664020,1714151453670,-500.0,0.00041643,7]
[323664021,1714151453679,-500.0,0.00041643,7]
[323664022,1714151453688,-313.44632527,0.00041643,7]
[323664023,1714151453698,-500.0,0.00041643,7]
[323664024,1714151453708,-343.98922663,0.00041643,7]
[323664025,1714151453718,-500.0,0.00041643,7]
[323664026,1714151453729,-5209.22,0.00041643,7]
[323664027,1714151453738,-500.0,0.00041643,7]
[323664028,1714151453747,-500.0,0.00041643,7]
[323664029,1714151453756,-500.0,0.00041643,7]
[323664030,1714151453765,-1379.93,0.00041643,7]
[323664031,1714151453775,-500.0,0.00041643,7]
[323664032,1714151453785,-500.0,0.00041643,7]
[323664033,1714151453795,-504.86244929,0.00041643,7]
[323664034,1714151453806,-500.0,0.00041643,7]
[323664035,1714151453817,-500.0,0.00041643,7]
[323664036,1714151453827,-835.38,0.00041643,7]
[323664037,1714151453838,-500.0,0.00041643,7]
[323664038,1714151453848,-728.58,0.00041643,7]
[323664039,1714151453858,-500.0,0.00041643,7]
[323664040,1714151453869,-704.86,0.00041643,7]
[323664041,1714151453878,-500.0,0.00041643,7]
[323664042,1714151453887,-1073.4,0.00041643,7]
[323664043,1714151453896,-500.0,0.00041643,7]
[323664044,1714151453905,-500.0,0.00041643,7]
[323664045,1714151453914,-1875.92,0.00041643,7]
[323664046,1714151453925,-500.0,0.00041643,7]
[323664047,1714151453935,-747.19,0.00041643,7]
[323664048,1714151453946,-500.0,0.00041643,7]
[323664049,1714151453955,-151.0,0.00041643,7]
[323664050,1714151453965,-151.0,0.00041643,7]
[323664051,1714151453974,-500.0,0.00041643,7]
[323664052,1714151453984,-500.0,0.00041643,7]
[323664053,1714151453994,-500.0,0.00041643,7]
[323664054,1714151454003,-500.0,0.00041643,7]
[323664055,1714151454017,-500.0,0.00041643,7]
[323664056,1714151454027,-1963.81,0.00041643,7]
[323664057,1714151454037,-8810.57,0.00041643,7]
[323664058,1714151454047,-500.0,0.00041643,7]
[323664059,1714151454058,-500.0,0.00041643,7]
[323664060,1714151454068,-500.0,0.00041643,7]
[323664061,1714151454079,-1211.86,0.00041643,7]
[323664062,1714151454089,-500.0,0.00041643,7]
[323664063,1714151454099,-500.0,0.00041643,7]
[323664064,1714151454109,-500.0,0.00041643,7]
[323664065,1714151454118,-500.0,0.00041643,7]
[323664066,1714151454128,-500.0,0.00041643,7]
[323664067,1714151454138,-500.0,0.00041643,7]
[323664068,1714151454148,-6049.81,0.00041643,7]
[323664069,1714151454158,-1108.5,0.00041643,7]
[323664070,1714151454168,-500.0,0.00041643,7]
[323664071,1714151454178,-500.0,0.00041643,7]
[323664073,1714151454189,-273.238321,0.00041643,7]
[323664075,1714151454202,-273.238321,0.00041643,7]
[323664077,1714151454213,-500.0,0.00041643,7]
[323664078,1714151454223,-500.0,0.00041643,7]
[323664079,1714151454234,-500.0,0.00041643,7]
[323664080,1714151454243,-273.238321,0.00041643,7]
[323664081,1714151454253,-273.238321,0.00041643,7]
[323664082,1714151454263,-660.06,0.00041643,7]
[323664083,1714151454274,-151.0,0.00041643,7]
[323664084,1714151454284,-151.0,0.00041643,7]
[323664085,1714151454294,-500.0,0.00041643,7]
[323664086,1714151454304,-297.35068592,0.00041643,7]
[323664087,1714151454314,-4601.83,0.00041643,7]
[323664088,1714151454326,-500.0,0.00041643,7]
[323664089,1714151454336,-500.0,0.00041643,7]
[323664090,1714151454347,-500.0,0.00041643,7]
[323664091,1714151454357,-1006.47,0.00041643,7]
[323664092,1714151454368,-2642.19,0.00041643,7]
[323664093,1714151454378,-1236.95,0.00041643,7]
[323664094,1714151454387,-900.0,0.00041643,7]
[323664095,1714151454397,-500.0,0.00041643,7]
[323664096,1714151454406,-500.0,0.00041643,7]
[323664097,1714151454415,-500.0,0.00041643,7]
[323664098,1714151454424,-500.0,0.00041643,7]
[323664099,1714151454433,-1037.96,0.00041643,7]
[323664100,1714151454442,-500.0,0.00041643,7]
[323664101,1714151454452,-1068.89,0.00041643,7]
[323664102,1714151454461,-500.0,0.00041643,7]
[323664103,1714151454471,-538.99,0.00041643,7]
[323664104,1714151454481,-701.69,0.00041643,7]
[323664105,1714151454490,-500.0,0.00041643,7]
[323664106,1714151454501,-3882.5,0.00041643,7]
[323664107,1714151454511,-1351.34,0.00041643,7]
[323664108,1714151454521,-500.0,0.00041643,7]
[323664109,1714151454530,-500.0,0.00041643,7]
[323664110,1714151454541,-500.0,0.00041643,7]
[323664111,1714151454551,-500.0,0.00041643,7]
[323664112,1714151454561,-500.0,0.00041643,7]
[323664113,1714151454571,-1308.8,0.00041643,7]
[323664114,1714151454581,-290.455397,0.00041643,7]
[323664115,1714151454591,-500.0,0.00041643,7]
[323664116,1714151454602,-4129.12,0.00041643,7]
[323664117,1714151454611,-500.0,0.00041643,7]
[323664118,1714151454621,-290.455397,0.00041643,7]
[323664119,1714151454630,-500.0,0.00041643,7]
[323664120,1714151454642,-500.0,0.00041643,7]
[323664121,1714151454651,-290.455397,0.00041643,7]
[323664122,1714151454661,-290.455397,0.00041643,7]
[323664123,1714151454671,-1568.78,0.00041643,7]
[323664124,1714151454680,-624.57,0.00041643,7]
[323664125,1714151454690,-500.0,0.00041643,7]
[323664126,1714151454699,-9906.46,0.00041643,7]
[323664127,1714151454709,-500.0,0.00041643,7]
[323664128,1714151454720,-707.43,0.00041643,7]
[323664129,1714151454731,-500.0,0.00041643,7]
[323664130,1714151454741,-500.0,0.00041643,7]
[323664131,1714151454750,-1463.03,0.00041643,7]
[323664132,1714151454760,-500.0,0.00041643,7]
[323664133,1714151454769,-652.39,0.00041643,7]
[323664134,1714151454779,-8370.61,0.00041643,7]
[323664135,1714151454789,-439.27032487,0.00041643,7]
[323664136,1714151454799,-500.0,0.00041643,7]
[323664137,1714151454809,-1240.5,0.00041643,7]
[323664138,1714151454820,-500.0,0.00041643,7]
[323664139,1714151454831,-500.0,0.00041643,7]
[323664140,1714151454840,-500.0,0.00041643,7]
[323664141,1714151454916,-500.0,0.00041643,7]
[323664142,1714151454936,-500.0,0.00041643,7]
[323664143,1714151454947,-500.0,0.00041643,7]
[323664144,1714151454957,-500.0,0.00041643,7]
[323664145,1714151454968,-500.0,0.00041643,7]
[323664146,1714151454978,-500.0,0.00041643,7]
[323664147,1714151454988,-612.68,0.00041643,7]
[323664148,1714151454999,-500.0,0.00041643,7]
[323664149,1714151455008,-500.0,0.00041643,7]
[323664150,1714151455022,-735.34,0.00041643,7]
[323664151,1714151455033,-577.88,0.00041643,7]
[323664152,1714151455043,-500.0,0.00041643,7]
[323664153,1714151455054,-12883.84,0.00041643,7]
[323664154,1714151455066,-10267.73,0.00041643,7]
[323664155,1714151455076,-1671.4,0.00041643,7]
[323664156,1714151455086,-500.0,0.00041643,7]
[323664157,1714151455098,-500.0,0.00041643,7]
[323664158,1714151455108,-522.82174825,0.00041643,7]
[323664159,1714151455120,-500.0,0.00041643,7]
[323664160,1714151455129,-500.0,0.00041643,7]
[323664161,1714151455140,-500.0,0.00041643,7]
[323664162,1714151455150,-500.0,0.00041643,7]
[323664163,1714151455161,-500.95878592,0.00041643,7]
[323664164,1714151455171,-500.0,0.00041643,7]
[323664165,1714151455181,-500.0,0.00041643,2]
[323664166,1714151455191,-500.0,0.00041643,7]
[323664167,1714151455201,-5819.34,0.00041643,7]
[323664168,1714151455213,-500.0,0.00041643,7]
[323664169,1714151455224,-500.0,0.00041643,7]
[323664170,1714151455236,-500.0,0.00041643,7]
[323664171,1714151455246,-1454.51,0.00041643,7]
[323664172,1714151455258,-500.0,0.00041643,7]
[323664173,1714151455268,-500.0,0.00041643,7]
[323664174,1714151455279,-500.0,0.00041917,7]
[323664175,1714151455288,-500.0,0.00041917,7]
[323664176,1714151455299,-500.0,0.00041917,7]
[323664177,1714151455310,-843.21,0.00041917,7]
[323664178,1714151455320,-500.0,0.00041917,3]
[323664179,1714151455331,-500.0,0.00041917,7]
[323664180,1714151455341,-500.0,0.00041917,7]
[323664181,1714151455350,-500.0,0.00041917,7]
[323664182,1714151455360,-500.0,0.00041917,7]
[323664183,1714151455368,-1531.05,0.00041917,120]
[323664184,1714151455377,-500.0,0.00041917,7]
[323664185,1714151455386,-500.0,0.00041917,7]
[323664186,1714151455395,-500.0,0.00041917,7]
[323664187,1714151455404,-500.0,0.00041917,7]
[323664188,1714151455413,-500.0,0.00041917,7]
[323664189,1714151455423,-1205.42,0.00041917,7]
[323664190,1714151455433,-500.0,0.00041917,7]
[323664191,1714151455442,-500.0,0.00041917,7]
[323664192,1714151455451,-500.0,0.00041917,7]
[323664193,1714151455461,-500.0,0.00041917,7]
[323664194,1714151455469,-500.0,0.00041917,7]
[323664195,1714151455479,-500.0,0.00041917,7]
[323664196,1714151455490,-537.02104969,0.00041917,7]
[323664197,1714151455499,-500.0,0.00041917,7]
[323664198,1714151455509,-500.0,0.00041917,7]
[323664199,1714151455519,-500.0,0.00041917,7]
[323664200,1714151455529,-500.0,0.00041917,7]
[323664201,1714151455537,-166.36775956,0.00041917,7]
[323664202,1714151455547,-500.0,0.00041917,7]
[323664203,1714151455556,-406.23768077,0.00041917,7]
[323664204,1714151455566,-500.0,0.00041917,7]
[323664205,1714151455575,-500.0,0.00041917,7]
[323664206,1714151455584,-500.0,0.00041917,7]
[323664207,1714151455593,-500.0,0.00041917,7]
[323664208,1714151455603,-500.0,0.00041917,7]
[323664209,1714151455612,-500.0,0.00041917,7]
[323664210,1714151455621,-502.25734846,0.00041917,7]
[323664211,1714151455630,-500.93969674,0.00041917,7]
[323664212,1714151455640,-1843.11,0.00041917,7]
[323664213,1714151455650,-500.0,0.00041917,7]
[323664214,1714151455659,-1315.36,0.00041917,7]
[323664215,1714151455669,-500.0,0.00041917,7]
[323664216,1714151455679,-500.0,0.00041917,7]
[323664217,1714151455688,-500.0,0.00041917,7]
[323664218,1714151455697,-1968.72,0.00041917,7]
[323664219,1714151455706,-500.0,0.00041917,7]
[323664220,1714151455716,-500.0,0.00041917,7]
[323664221,1714151455725,-1326.46,0.00041917,7]
[323664222,1714151455736,-500.0,0.00041917,7]
[323664223,1714151455744,-501.18400004,0.00041917,7]
[323664224,1714151455754,-500.0,0.00041917,7]
[323664225,1714151455763,-500.0,0.00041917,7]
[323664226,1714151455773,-500.0,0.00041917,7]
[323664227,1714151455782,-500.0,0.00041917,7]
[323664228,1714151455792,-500.0,0.00041917,7]
[323664229,1714151455802,-500.0,0.00041917,7]
[323664230,1714151455812,-500.0,0.00041917,7]
[323664231,1714151455822,-500.0,0.00041917,7]
[323664232,1714151455831,-500.0,0.00041917,7]
[323664233,1714151455840,-500.0,0.00041917,7]
[323664234,1714151455850,-500.0,0.00041917,7]
[323664235,1714151455860,-1037.26,0.00041917,7]
[323664236,1714151455869,-564.90965867,0.00041917,7]
[323664237,1714151455879,-151.0,0.00041917,7]
[323664238,1714151455888,-1749.02,0.00041917,7]
[323664239,1714151455897,-1398.14,0.00041917,7]
[323664240,1714151455906,-500.0,0.00041917,7]
[323664241,1714151455916,-500.0,0.00041917,7]
[323664242,1714151455925,-563.34097085,0.00041917,7]
[323664243,1714151455936,-500.0,0.00041917,7]
[323664244,1714151455946,-500.0,0.00041917,7]
[323664245,1714151455965,-547.54,0.00041917,7]
[323664246,1714151455974,-500.0,0.00041917,7]
[323664247,1714151455983,-2123.78,0.00041917,7]
[323664248,1714151455992,-500.0,0.00041917,7]
[323664249,1714151456002,-500.0,0.00041917,7]
[323664250,1714151456014,-500.0,0.00041917,7]
[323664251,1714151456025,-151.0,0.00041917,7]
[323664252,1714151456034,-151.0,0.00041917,7]
[323664253,1714151456044,-170.29744252,0.00041917,7]
[323664254,1714151456054,-511.14674902,0.00041917,7]
[323664255,1714151456064,-151.0,0.00041917,7]
[323664256,1714151456073,-151.0,0.00041917,7]
[323664257,1714151456083,-500.0,0.00041917,7]
[323664258,1714151456093,-151.0,0.00041917,7]
[323664259,1714151456102,-151.0,0.00041917,7]
[323664260,1714151456112,-501.18741437,0.00041917,7]
[323664261,1714151456122,-500.0,0.00041917,7]
[323664262,1714151456132,-500.0,0.00041917,7]
[323664263,1714151456142,-500.0,0.00041917,7]
[323664264,1714151456151,-500.0,0.00041917,7]
[323664265,1714151456161,-2561.54,0.00041917,7]
[323664266,1714151456170,-500.0,0.00041917,7]
[323664267,1714151456180,-500.0,0.00041917,7]
[323664268,1714151456189,-500.0,0.00041917,7]
[323664269,1714151456199,-1529.74,0.00041917,7]
[323664270,1714151456208,-1087.6,0.00041917,7]
[323664271,1714151456217,-1398.22,0.00041917,7]
[323664272,1714151456226,-200.0,0.00041917,30]
[323664273,1714151456237,-500.0,0.00041917,7]
[323664274,1714151456246,-1748.44,0.00041917,7]
[323664275,1714151456255,-500.0,0.00041917,7]
[323664276,1714151456265,-501.76447136,0.00041917,7]
[323664277,1714151456274,-500.0,0.00041917,7]
[323664278,1714151456284,-500.0,0.00041917,7]
[323664279,1714151456293,-500.0,0.00041917,7]
[323664280,1714151456302,-5209.22,0.00041917,7]
[323664281,1714151456312,-500.0,0.00041917,7]
[323664282,1714151456322,-500.0,0.00041917,7]
[323664283,1714151456332,-160.1590454,0.00041917,7]
[323664284,1714151456341,-1379.93,0.00041917,7]
[323664285,1714151456351,-500.0,0.00041917,7]
[323664286,1714151456361,-500.0,0.00041917,7]
[323664287,1714151456370,-612.97508069,0.00041917,7]
[323664288,1714151456379,-500.0,0.00041917,7]
[323664289,1714151456388,-835.38,0.00041917,7]
[323664290,1714151456398,-500.0,0.00041917,7]
[323664291,1714151456408,-728.58,0.00041917,7]
[323664292,1714151456490,-500.0,0.00041917,7]
[323664293,1714151456499,-704.86,0.00041917,7]
[323664294,1714151456508,-500.0,0.00041917,7]
[323664295,1714151456517,-1073.4,0.00041917,7]
[323664296,1714151456526,-500.0,0.00041917,7]
[323664297,1714151456535,-500.0,0.00041917,7]
[323664298,1714151456544,-1875.92,0.00041917,7]
[323664299,1714151456554,-500.0,0.00041917,7]
[323664300,1714151456563,-747.19,0.00041917,7]
[323664301,1714151456572,-500.0,0.00041917,7]
[323664302,1714151456582,-151.0,0.00041917,7]
[323664303,1714151456591,-500.0,0.00041917,7]
[323664304,1714151456600,-500.0,0.00041917,7]
[323664305,1714151456609,-500.0,0.00041917,7]
[323664306,1714151456618,-500.0,0.00041917,7]
[323664307,1714151456627,-500.0,0.00041917,7]
[323664308,1714151456637,-1963.81,0.00041917,7]
[323664309,1714151456646,-8810.57,0.00041917,7]
[323664310,1714151456656,-500.0,0.00041917,7]
[323664311,1714151456665,-500.0,0.00041917,7]
[323664312,1714151456674,-497.89619664,0.00041917,7]
[323664313,1714151456683,-1211.86,0.00041917,7]
[323664314,1714151456692,-500.0,0.00041917,7]
[323664315,1714151456702,-500.0,0.00041917,7]
[323664316,1714151456712,-500.0,0.00041917,7]
[323664317,1714151456722,-500.0,0.00041917,7]
[323664318,1714151456732,-500.0,0.00041917,7]
[323664319,1714151456741,-500.0,0.00041917,7]
[323664320,1714151456750,-6049.81,0.00041917,7]
[323664321,1714151456760,-1108.5,0.00041917,7]
[323664322,1714151456769,-500.0,0.00041917,7]
[323664323,1714151456778,-500.0,0.00041917,7]
[323664324,1714151456788,-273.238321,0.00041917,7]
[323664325,1714151456797,-273.238321,0.00041917,7]